bitfinex/quotes_SOLUSD_20250522
["timestamp","ask_amount","ask_price","bid_price","bid_amount"]
[1747887203441,48.3588803,176.19,176.13,14.2988803]
[1747887203733,48.3588803,176.19,176.12,14.2988803]
[1747887204144,34.06,176.19,176.14,14.2988803]
[1747887204319,48.57420626,176.2,176.14,14.2988803]
[1747887204514,62.87308656,176.2,176.14,14.2988803]
[1747887204835,62.87308656,176.2,176.13,14.2988803]
[1747887205231,48.57420626,176.2,176.13,14.2988803]
[1747887205435,62.87308656,176.2,176.13,14.2988803]
[1747887205827,14.2988803,176.19,176.12,14.2988803]
[1747887206022,48.3588803,176.19,176.12,14.2988803]
[1747887206221,48.3588803,176.19,176.13,14.2988803]
[1747887206427,34.06,176.19,176.13,14.2988803]
[1747887207443,5.67601316,176.18,176.13,14.2988803]
[1747887208333,19.97489346,176.18,176.11,14.2988803]
[1747887208534,5.67601316,176.18,176.13,14.2988803]
[1747887209545,14.2988803,176.17,176.11,14.2988803]
[1747887210459,14.2988803,176.17,176.08,31.67920061]
[1747887210460,14.2988803,176.14,176.08,14.2988803]
[1747887210746,34.06,176.14,176.09,14.2988803]
[1747887211241,34.06,176.14,176.08,14.2988803]
[1747887211633,5.67762448,176.13,176.08,14.2988803]
[1747887212244,19.97650478,176.13,176.04,26.0]
[1747887212449,19.97650478,176.13,176.04,31.68046797]
[1747887212647,5.67762448,176.13,176.07,14.2988803]
[1747887212951,5.67762448,176.13,176.08,14.2988803]
[1747887213449,5.67762448,176.13,176.09,14.2988803]
[1747887213762,19.97650478,176.13,176.07,14.2988803]
[1747887213968,19.97650478,176.13,176.08,14.2988803]
[1747887214127,5.67762448,176.13,176.08,14.2988803]
[1747887214544,5.67762448,176.13,176.1,14.2988803]
[1747887215153,5.67762448,176.13,176.09,14.2988803]
[1747887215338,34.06,176.14,176.09,14.2988803]
[1747887215545,50.1657803,176.17,176.12,14.2988803]
[1747887215733,55.84222693,176.17,176.11,14.2988803]
[1747887216054,14.2988803,176.16,176.1,14.2988803]
[1747887216933,14.2988803,176.16,176.11,14.2988803]
[1747887217549,19.97586014,176.15,176.1,14.2988803]
[1747887217760,14.2988803,176.14,176.08,14.2988803]
[1747887217967,19.97586014,176.15,176.09,14.2988803]
[1747887218553,14.2988803,176.14,176.04,31.68051651]
[1747887218851,14.2988803,176.14,176.09,14.2988803]
[1747887219053,19.86942945,176.15,176.05,0.14216157]
[1747887219054,54.03586014,176.15,176.1,14.2988803]
[1747887219226,39.73697984,176.15,176.1,14.2988803]
[1747887219431,54.03586014,176.15,176.1,14.2988803]
[1747887219730,54.03586014,176.15,176.09,14.2988803]
[1747887220157,14.2988803,176.14,176.08,14.2988803]
[1747887220658,5.67762448,176.13,176.08,14.2988803]
[1747887221162,5.67762448,176.13,176.09,14.2988803]
[1747887221332,5.67762448,176.13,176.08,14.2988803]
[1747887222840,34.06,176.14,176.1,14.2988803]
[1747887223163,34.06,176.14,176.09,14.2988803]
[1747887223759,145.73881901,176.2,176.12,14.2988803]
[1747887223944,34.06,176.17,176.09,0.14216157]
[1747887224147,48.3588803,176.17,176.11,14.2988803]
[1747887224338,14.2988803,176.16,176.1,14.2988803]
[1747887224657,34.06,176.17,176.1,14.2988803]
[1747887224846,5.67665758,176.16,176.1,14.2988803]
[1747887226761,14.2988803,176.15,176.09,14.2988803]
[1747887227148,19.97553788,176.16,176.1,14.2988803]
[1747887227964,19.97553788,176.16,176.09,14.2988803]
[1747887228463,19.97553788,176.16,176.1,14.2988803]
[1747887228757,34.16718184,176.16,176.07,26.0]
[1747887228959,14.2988803,176.15,176.09,14.2988803]
[1747887229441,34.16718184,176.16,176.09,14.2988803]
[1747887229642,19.97553788,176.16,176.1,14.2988803]
[1747887230851,5.67665758,176.16,176.1,14.2988803]
[1747887231762,5.67665758,176.16,176.11,14.2988803]
[1747887232953,5.67642063,176.17,176.12,14.2988803]
[1747887233868,136.9,176.18,176.14,14.2988803]
[1747887234049,39.73571891,176.19,176.11,14.2988803]
[1747887234251,14.2988803,176.17,176.11,14.2988803]
[1747887234765,14.2988803,176.17,176.1,14.2988803]
[1747887234971,19.97553788,176.16,176.1,14.2988803]
[1747887236264,19.97553788,176.16,176.09,14.2988803]
[1747887236452,14.2988803,176.15,176.09,14.2988803]
[1747887237173,5.67730214,176.14,176.07,26.0]
[1747887237465,5.67674056,176.16,176.11,14.2988803]
[1747887237668,136.9,176.18,176.11,14.2988803]
[1747887237879,151.1988803,176.18,176.12,14.2988803]
[1747887238088,151.1988803,176.18,176.11,14.2988803]
[1747887238265,14.2988803,176.17,176.11,14.2988803]
[1747887238447,14.2988803,176.16,176.08,0.14216157]
[1747887238654,19.97526431,176.17,176.11,14.2988803]
[1747887238867,19.97526431,176.17,176.07,31.6795158]
[1747887239048,14.2988803,176.16,176.07,31.6795158]
[1747887239270,136.9,176.18,176.09,0.14216157]
[1747887239469,136.9,176.18,176.13,14.2988803]
[1747887239650,136.9,176.18,176.08,0.14216157]
[1747887239651,14.2988803,176.17,176.11,14.2988803]
[1747887239851,14.2988803,176.16,176.07,26.0]
[1747887240070,156.76613058,176.18,176.09,14.2988803]
[1747887240071,14.2988803,176.15,176.09,14.2988803]
[1747887240973,14.2988803,176.16,176.09,14.2988803]
[1747887241178,156.76613058,176.18,176.07,31.67948078]
[1747887241179,19.97521565,176.17,176.11,14.2988803]
[1747887241473,19.97521565,176.17,176.1,14.2988803]
[1747887241853,14.2988803,176.16,176.07,26.0]
[1747887242168,14.2988803,176.15,176.07,26.0]
[1747887242374,14.2988803,176.15,176.09,14.2988803]
[1747887242877,14.2988803,176.14,176.05,0.14216157]
[1747887243191,5.67762448,176.13,176.08,14.2988803]
[1747887243355,5.67762448,176.13,176.05,5.68016398]
[1747887243552,5.67762448,176.13,176.04,26.14216157]
[1747887243852,5.67762448,176.13,176.09,14.2988803]
[1747887244076,14.2988803,176.15,176.1,14.2988803]
[1747887244077,34.06,176.15,176.1,14.2988803]
[1747887244282,34.06,176.15,176.11,14.2988803]
[1747887244482,34.06,176.15,176.06,0.14216157]
[1747887244777,48.3588803,176.15,176.08,14.2988803]
[1747887245792,19.97618244,176.14,176.06,0.14216157]
[1747887246084,19.97618244,176.14,176.08,14.2988803]
[1747887246475,14.2988803,176.13,176.07,14.2988803]
[1747887247183,5.67730214,176.14,176.09,14.2988803]
[1747887247760,5.67730214,176.14,176.1,14.2988803]
[1747887248065,5.67730214,176.14,176.09,14.2988803]
[1747887248260,5.67730214,176.14,176.1,14.2988803]
[1747887248466,136.9,176.18,176.13,14.2988803]
[1747887248672,136.9,176.18,176.14,14.2988803]
[1747887248874,142.57612598,176.18,176.13,14.2988803]
[1747887249073,156.87500628,176.18,176.12,14.2988803]
[1747887249886,14.2988803,176.17,176.11,14.2988803]
[1747887250091,14.2988803,176.15,176.09,14.2988803]
[1747887250264,14.2988803,176.16,176.1,14.2988803]
[1747887250461,14.2988803,176.16,176.11,14.2988803]
[1747887250787,142.57612598,176.18,176.13,14.2988803]
[1747887251400,156.87500628,176.18,176.12,14.2988803]
[1747887251769,142.57612598,176.18,176.11,14.2988803]
[1747887251971,142.57612598,176.18,176.14,14.2988803]
[1747887252398,142.57612598,176.18,176.13,14.2988803]
[1747887253295,48.3588803,176.17,176.08,0.14216157]
[1747887253475,48.3588803,176.17,176.11,14.2988803]
[1747887253677,34.06,176.17,176.13,14.2988803]
[1747887253871,5.67612598,176.18,176.13,14.2988803]
[1747887254072,5.6757267,176.19,176.14,14.2988803]
[1747887255095,5.67523879,176.21,176.16,14.2988803]
[1747887255292,10.57718008,176.22,176.19,14.2988803]
[1747887255293,8.86658008,176.22,176.19,14.2988803]
[1747887255495,8.86658008,176.22,176.17,14.2988803]
[1747887255792,43.02706135,176.22,176.15,26.0]
[1747887256090,14.2988803,176.2,176.14,14.2988803]
[1747887256469,28.72818105,176.22,176.13,14.2988803]
[1747887256671,14.2988803,176.2,176.15,14.2988803]
[1747887256870,14.2988803,176.2,176.14,14.2988803]
[1747887257070,5.67569101,176.19,176.14,14.2988803]
[1747887257293,5.67569101,176.19,176.15,14.2988803]
[1747887257601,19.97457131,176.19,176.13,14.2988803]
[1747887257895,5.67569101,176.19,176.14,14.2988803]
[1747887258101,5.67569101,176.19,176.12,26.0]
[1747887258294,5.67569101,176.19,176.14,14.2988803]
[1747887258478,5.67569101,176.19,176.13,14.2988803]
[1747887258673,5.67569101,176.19,176.14,14.2988803]
[1747887258890,5.67528784,176.21,176.18,14.2988803]
[1747887259214,14.2988803,176.19,176.12,26.0]
[1747887259382,14.2988803,176.18,176.13,14.2988803]
[1747887259586,14.2988803,176.17,176.12,14.2988803]
[1747887260110,14.2988803,176.18,176.11,31.67823797]
[1747887260310,14.2988803,176.18,176.12,14.2988803]
[1747887260974,151.1988803,176.18,176.12,14.2988803]
[1747887261177,5.67633535,176.17,176.11,26.0]
[1747887261392,5.67633535,176.17,176.11,40.2988803]
[1747887261393,19.97521565,176.17,176.11,40.2988803]
[1747887261593,14.2988803,176.16,176.11,26.0]
[1747887261973,14.2988803,176.15,176.07,6.2675]
[1747887262226,14.2988803,176.15,176.09,14.2988803]
[1747887263096,5.67730214,176.14,176.09,14.2988803]
[1747887263298,19.97618244,176.14,176.09,14.2988803]
[1747887263601,5.67730214,176.14,176.09,14.2988803]
[1747887264195,5.67730214,176.14,176.08,40.2988803]
[1747887264401,5.67730214,176.14,176.09,14.2988803]
[1747887264582,5.67730214,176.14,176.1,14.2988803]
[1747887265203,19.97618244,176.14,176.09,14.2988803]
[1747887266279,19.97618244,176.14,176.08,14.2988803]
[1747887266699,19.97618244,176.14,176.08,40.2988803]
[1747887266907,5.67730214,176.14,176.11,14.2988803]
[1747887267281,5.67730214,176.14,176.1,14.2988803]
[1747887267691,19.97618244,176.14,176.09,14.2988803]
[1747887268186,14.2988803,176.13,176.08,26.0]
[1747887268388,14.2988803,176.11,176.06,26.0]
[1747887268600,14.2988803,176.11,176.06,14.2988803]
[1747887269386,14.2988803,176.09,176.04,40.2988803]
[1747887269795,14.2988803,176.1,176.05,14.2988803]
[1747887270425,40.32824335,176.09,176.0,6.98208636]
[1747887270706,14.2988803,176.06,176.0,14.2988803]
[1747887270915,34.06,176.07,176.03,14.2988803]
[1747887271286,26.03233376,176.06,176.03,14.2988803]
[1747887271698,26.03233376,176.06,176.02,14.2988803]
[1747887271901,31.71232967,176.06,176.02,14.2988803]
[1747887272111,31.71232967,176.06,176.03,14.2988803]
[1747887272301,31.71232967,176.06,176.02,14.2988803]
[1747887272496,31.71232967,176.06,176.01,14.2988803]
[1747887272703,46.01120997,176.06,176.01,14.2988803]
[1747887273398,14.2988803,176.05,175.99,26.0]
[1747887273708,14.2988803,176.05,175.99,40.2988803]
[1747887274079,19.97940745,176.04,175.99,40.2988803]
[1747887274279,19.97940745,176.04,175.99,26.0]
[1747887274512,14.2988803,176.03,175.98,14.2988803]
[1747887274697,34.06,176.02,175.98,14.2988803]
[1747887275409,34.06,176.02,175.97,26.0]
[1747887275913,34.06,176.02,175.99,14.2988803]
[1747887276102,34.06,176.02,176.0,14.2988803]
[1747887276407,39.76052715,176.04,176.0,14.2988803]
[1747887277397,26.03233376,176.06,176.02,14.2988803]
[1747887277598,60.11233376,176.06,176.03,14.2988803]
[1747887277798,60.11233376,176.06,176.04,14.2988803]
[1747887278011,26.03233376,176.06,176.05,14.2988803]
[1747887278696,26.03233376,176.06,176.03,14.2988803]
[1747887279106,26.03233376,176.06,176.01,26.0]
[1747887279107,26.03233376,176.06,176.05,14.2988803]
[1747887279614,26.03233376,176.06,176.03,14.2988803]
[1747887279820,26.03233376,176.06,176.04,14.2988803]
[1747887280004,26.03233376,176.06,176.05,14.2988803]
[1747887280396,26.03233376,176.06,176.04,14.2988803]
[1747887280397,31.71221721,176.06,176.04,14.2988803]
[1747887280602,31.71221721,176.06,176.03,14.2988803]
[1747887280911,26.03233376,176.06,176.04,14.2988803]
[1747887281595,26.03233376,176.06,176.05,14.2988803]
[1747887282013,5.68020448,176.05,175.96,14.34963362]
[1747887282314,5.68020448,176.05,176.01,14.2988803]
[1747887282496,5.68020448,176.05,176.0,40.2988803]
[1747887283302,5.68020448,176.05,176.01,14.2988803]
[1747887283499,31.71225715,176.06,176.02,14.2988803]
[1747887283899,31.71225715,176.06,176.0,26.0]
[1747887284103,46.01113745,176.06,176.0,40.2988803]
[1747887284291,46.01113745,176.06,176.0,14.2988803]
[1747887284514,46.01113745,176.06,176.01,14.2988803]
[1747887285402,34.08,176.05,176.01,14.2988803]
[1747887285636,39.76039782,176.05,176.01,14.2988803]
[1747887287212,14.2988803,176.04,175.99,14.2988803]
[1747887287822,5.68084985,176.03,175.99,14.2988803]
[1747887288196,5.68084985,176.03,175.96,31.68291502]
[1747887288422,5.68084985,176.03,175.99,14.2988803]
[1747887288718,19.97973015,176.03,175.98,14.2988803]
[1747887288927,5.68084985,176.03,175.99,14.2988803]
[1747887289096,5.68084985,176.03,176.0,14.2988803]
[1747887289404,5.68084985,176.03,175.99,14.2988803]
[1747887289609,5.68084985,176.03,175.98,40.2988803]
[1747887291112,34.08,176.03,176.0,14.2988803]
[1747887291599,34.08,176.04,176.02,14.2988803]
[1747887291793,136.9,176.05,176.03,14.2988803]
[1747887291993,26.03233376,176.06,176.04,14.2988803]
[1747887292221,26.03233376,176.06,176.05,14.2988803]
[1747887292926,26.03233376,176.06,176.05,40.2988803]
[1747887293303,26.03233376,176.06,176.05,26.0]
[1747887293497,26.03233376,176.06,176.01,6.4159]
[1747887293498,31.71221561,176.06,176.03,40.2988803]
[1747887293714,26.03233376,176.06,176.04,14.2988803]
[1747887293923,26.03233376,176.06,176.04,40.2988803]
[1747887294831,26.03233376,176.06,176.05,14.2988803]
[1747887295029,26.03233376,176.06,176.04,26.0]
[1747887295329,31.71232685,176.06,176.04,40.2988803]
[1747887296302,31.71232685,176.06,176.04,26.0]
[1747887297532,26.03233376,176.06,176.04,26.0]
[1747887297916,26.03233376,176.06,176.05,14.2988803]
[1747887298745,26.03233376,176.06,176.04,40.2988803]
[1747887299705,31.71239689,176.06,176.03,14.2988803]
[1747887300104,46.01127719,176.06,175.98,0.14216157]
[1747887300306,80.09127719,176.06,176.01,14.2988803]
[1747887300616,65.79239689,176.06,176.01,14.2988803]
[1747887300815,65.79239689,176.06,176.03,14.2988803]
[1747887301135,60.11233376,176.06,176.03,14.2988803]
[1747887301322,60.11233376,176.06,176.04,14.2988803]
[1747887301528,26.03233376,176.06,176.05,14.2988803]
[1747887301838,26.03233376,176.06,176.05,40.2988803]
[1747887302038,11.83750275,176.06,176.05,39.34079073]
[1747887302831,11.83750275,176.06,176.05,20.69114187]
[1747887303519,11.83750275,176.06,176.05,26.37134635]
[1747887303725,11.83750275,176.06,176.05,52.37134635]
[1747887303926,11.83750275,176.06,176.05,45.02099521]
[1747887304134,5.67697023,176.16,176.09,0.14216157]
[1747887304432,5.67697023,176.16,176.11,14.2988803]
[1747887304748,54.0552929,176.17,176.12,14.2988803]
[1747887304945,54.0552929,176.17,176.11,40.2988803]
[1747887305251,14.2988803,176.16,176.11,26.0]
[1747887305429,5.67697984,176.15,176.11,40.2988803]
[1747887305819,19.97521565,176.17,176.11,40.2988803]
[1747887306219,5.67633535,176.17,176.13,14.2988803]
[1747887306441,49.48,176.19,176.15,14.2988803]
[1747887306442,39.75569101,176.19,176.15,14.2988803]
[1747887306616,14.2988803,176.18,176.13,14.2988803]
[1747887307547,5.67633535,176.17,176.13,14.2988803]
[1747887307752,19.97521565,176.17,176.11,26.0]
[1747887308050,14.2988803,176.15,176.11,26.0]
[1747887308708,14.2988803,176.15,176.05,6.2501]
[1747887308914,14.2988803,176.13,176.07,14.2988803]
[1747887309123,14.2988803,176.12,176.07,14.2988803]
[1747887309343,14.2988803,176.12,176.07,40.2988803]
[1747887309538,19.97711959,176.12,176.07,40.2988803]
[1747887309747,5.67823929,176.12,176.08,14.2988803]
[1747887310038,19.97619794,176.14,176.09,14.2988803]
[1747887310240,39.73701314,176.15,176.11,14.2988803]
[1747887310833,39.73701314,176.15,176.1,14.2988803]
[1747887311420,25.30462568,176.2,176.13,14.2988803]
[1747887311627,19.97457131,176.19,176.13,40.2988803]
[1747887311822,5.67569101,176.19,176.15,14.2988803]
[1747887313223,16.79134894,176.2,176.15,14.2988803]
[1747887313429,16.79134894,176.2,176.16,14.2988803]
[1747887313717,14.2988803,176.19,176.12,27.6823]
[1747887313922,14.2988803,176.16,176.08,1.6823]
[1747887314115,14.2988803,176.16,176.11,40.2988803]
[1747887314358,34.06,176.18,176.11,40.2988803]
[1747887314643,14.2988803,176.17,176.11,40.2988803]
[1747887314849,5.67665758,176.16,176.11,40.2988803]
[1747887316145,5.6766185,176.17,176.15,14.2988803]
[1747887316348,5.6766185,176.17,176.13,14.2988803]
[1747887317249,19.9754988,176.17,176.11,26.0]
[1747887317440,19.9754988,176.17,176.11,40.2988803]
[1747887317831,5.6766185,176.17,176.11,40.2988803]
[1747887318025,5.6766185,176.17,176.12,14.2988803]
[1747887318947,19.9754988,176.17,176.12,14.2988803]
[1747887319534,5.6766185,176.17,176.14,14.2988803]
[1747887319739,5.6766185,176.17,176.12,14.2988803]
[1747887319941,19.9754988,176.17,176.12,14.2988803]
[1747887320147,5.6766185,176.17,176.12,14.2988803]
[1747887320536,5.6766185,176.17,176.13,14.2988803]
[1747887320857,19.97496614,176.18,176.13,14.2988803]
[1747887321351,19.97496614,176.18,176.14,26.0]
[1747887321352,5.67608584,176.18,176.14,26.0]
[1747887321649,34.06,176.19,176.14,40.2988803]
[1747887321955,39.73579793,176.19,176.15,14.2988803]
[1747887322255,5.67579793,176.19,176.15,14.2988803]
[1747887322652,16.79136891,176.2,176.16,14.2988803]
[1747887322845,16.79136891,176.2,176.17,14.2988803]
[1747887323145,31.09024921,176.2,176.15,14.2988803]
[1747887323456,14.2988803,176.18,176.12,40.2988803]
[1747887323844,14.2988803,176.18,176.13,40.2988803]
[1747887324146,31.09024921,176.2,176.15,14.2988803]
[1747887324350,31.09024921,176.2,176.14,14.2988803]
[1747887324532,14.2988803,176.19,176.14,14.2988803]
[1747887325256,5.67601316,176.18,176.13,40.2988803]
[1747887325455,5.67601316,176.18,176.14,14.2988803]
[1747887327663,5.67601316,176.18,176.13,26.0]
[1747887327961,5.67601316,176.18,176.13,40.2988803]
[1747887328546,5.67601316,176.18,176.13,26.0]
[1747887328747,5.67601316,176.18,176.13,40.2988803]
[1747887328947,19.97489346,176.18,176.13,40.2988803]
[1747887329148,19.97489346,176.18,176.12,40.2988803]
[1747887330857,5.67601316,176.18,176.13,40.2988803]
[1747887332460,5.67601316,176.18,176.14,14.2988803]
[1747887332946,5.67601316,176.18,176.13,14.2988803]
[1747887333150,5.67601316,176.18,176.14,14.2988803]
[1747887333352,5.67601316,176.18,176.15,14.2988803]
[1747887333869,5.67569101,176.19,176.12,0.14216157]
[1747887334069,5.67569101,176.19,176.14,14.2988803]
[1747887335041,5.67569101,176.19,176.15,14.2988803]
[1747887335366,5.67569101,176.19,176.16,14.2988803]
[1747887336466,5.67569101,176.19,176.13,26.0]
[1747887336669,14.2988803,176.14,176.08,1.6823]
[1747887336889,14.2988803,176.11,176.06,14.2988803]
[1747887337167,19.977472,176.1,176.05,14.2988803]
[1747887337469,5.6785917,176.1,176.06,14.2988803]
[1747887337656,19.9771821,176.11,176.06,14.2988803]
[1747887337853,14.2988803,176.1,176.03,0.14216157]
[1747887338056,14.2988803,176.09,176.04,14.2988803]
[1747887338369,14.2988803,176.05,176.02,7.95013726]
[1747887338547,14.2988803,176.05,176.0,14.2988803]
[1747887338751,14.2988803,176.04,175.99,14.2988803]
[1747887338950,5.68084985,176.03,175.99,14.2988803]
[1747887339359,5.68084985,176.03,175.97,14.2988803]
[1747887339360,19.97973015,176.03,175.97,14.2988803]
[1747887339561,19.97973015,176.03,175.98,14.2988803]
[1747887341250,19.97973015,176.03,175.95,26.0]
[1747887341449,14.2988803,176.02,175.95,26.0]
[1747887341748,14.2988803,176.01,175.96,14.2988803]
[1747887341955,14.2988803,176.02,175.97,14.2988803]
[1747887342173,5.68084985,176.03,175.98,14.2988803]
[1747887342482,34.06,176.04,176.02,14.2988803]
[1747887342663,14.2988803,176.06,176.01,14.2988803]
[1747887342976,14.2988803,176.06,176.0,14.2988803]
[1747887343148,14.2988803,176.04,175.99,14.2988803]
[1747887343349,14.2988803,176.06,176.0,14.2988803]
[1747887343557,14.2988803,176.06,176.01,14.2988803]
[1747887343778,19.97843956,176.07,176.02,14.2988803]
[1747887344278,5.67955926,176.07,176.01,14.2988803]
[1747887344459,14.2988803,176.06,176.01,14.2988803]
[1747887344663,5.68020448,176.05,176.01,14.2988803]
[1747887345357,19.97866233,176.07,176.02,14.2988803]
[1747887345556,14.2988803,176.05,176.0,14.2988803]
[1747887346176,14.2988803,176.06,176.01,14.2988803]
[1747887346586,14.2988803,176.04,175.99,14.2988803]
[1747887346751,5.68084985,176.03,175.99,14.2988803]
[1747887346955,5.68084985,176.03,176.0,14.2988803]
[1747887347560,14.2988803,176.02,175.94,26.0]
[1747887347752,14.2988803,176.02,175.97,14.2988803]
[1747887347949,39.76084985,176.03,175.97,14.2988803]
[1747887348150,39.76084985,176.03,175.98,14.2988803]
[1747887348379,68.26185478,176.03,175.97,14.2988803]
[1747887348561,14.2988803,176.02,175.97,14.2988803]
[1747887348762,5.68149536,176.01,175.97,14.2988803]
[1747887348964,5.68149536,176.01,175.93,5.68407496]
[1747887348965,19.98037566,176.01,175.96,14.2988803]
[1747887349461,19.98037566,176.01,175.92,6.4052]
[1747887349658,19.98037566,176.01,175.95,14.2988803]
[1747887352353,5.68149536,176.01,175.97,14.2988803]
[1747887352554,14.2988803,176.05,176.0,14.2988803]
[1747887352788,14.2988803,176.04,175.99,14.2988803]
[1747887353359,54.05908478,176.05,176.0,14.2988803]
[1747887353560,10.83336399,176.09,176.04,14.2988803]
[1747887353874,10.83336399,176.09,176.06,14.2988803]
[1747887354256,16.51235159,176.09,176.05,14.2988803]
[1747887354456,10.83336399,176.09,176.06,14.2988803]
[1747887355071,10.83336399,176.09,176.07,14.2988803]
[1747887356888,10.83336399,176.09,176.06,14.2988803]
[1747887357087,16.51252607,176.09,176.06,14.2988803]
[1747887357299,16.51252607,176.09,176.05,14.2988803]
[1747887357694,16.51252607,176.09,176.04,26.0]
[1747887357895,14.2988803,176.08,176.03,14.2988803]
[1747887358390,50.59252607,176.09,176.02,40.2988803]
[1747887358599,14.2988803,176.06,176.0,14.2988803]
[1747887358904,14.2988803,176.06,176.0,26.0]
[1747887359075,14.2988803,176.06,176.0,40.2988803]
[1747887359399,14.2988803,176.04,176.0,26.0]
[1747887359586,14.2988803,176.03,175.97,14.2988803]
[1747887359790,22.56562456,176.03,175.98,22.56562456]
[1747887360194,22.56562456,176.03,175.97,26.0]
[1747887360389,5.68117259,176.02,175.97,48.56562456]
[1747887361172,28.24679715,176.02,175.97,48.56562456]
[1747887363219,28.24679715,176.02,175.97,26.0]
[1747887363571,34.08,176.03,175.99,22.56562456]
[1747887363775,5.68020448,176.05,176.0,22.56562456]
[1747887363989,5.68020448,176.05,176.01,22.56562456]
[1747887364199,34.08,176.06,176.03,22.56562456]
[1747887364398,34.08,176.06,176.02,22.56562456]
[1747887365213,53.95975975,176.06,175.94,5.68375582]
[1747887365395,22.56562456,175.99,175.9,2.90076046]
[1747887365595,22.56562456,175.98,175.92,22.56562456]
[1747887365796,22.56562456,175.96,175.91,22.56562456]
[1747887366202,22.56562456,175.96,175.91,26.0]
[1747887366412,22.56562456,175.95,175.91,26.0]
[1747887366593,22.56562456,175.95,175.88,7.7531]
[1747887366794,22.56562456,175.95,175.89,22.56562456]
[1747887367106,56.64562456,175.95,175.9,22.56562456]
[1747887367308,5.68375582,175.94,175.88,32.1155]
[1747887367498,5.68375582,175.94,175.89,22.56562456]
[1747887367700,28.24938038,175.94,175.89,22.56562456]
[1747887368200,5.68375582,175.94,175.9,22.56562456]
[1747887368723,28.24938038,175.94,175.89,22.56562456]
[1747887369493,5.68375582,175.94,175.89,22.56562456]
[1747887369911,5.68375582,175.94,175.9,22.56562456]
[1747887370297,28.24938038,175.94,175.89,22.56562456]
[1747887370624,22.56562456,175.93,175.88,48.56562456]
[1747887371515,22.56562456,175.93,175.88,26.0]
[1747887371703,22.56562456,175.93,175.88,48.56562456]
[1747887372697,42.45876994,175.94,175.89,22.56562456]
[1747887373203,22.56562456,175.93,175.88,48.56562456]
[1747887373394,5.684402,175.92,175.88,48.56562456]
[1747887373594,28.25002656,175.92,175.87,22.56562456]
[1747887373894,5.684402,175.92,175.88,22.56562456]
[1747887374094,5.684402,175.92,175.89,22.56562456]
[1747887374819,22.56562456,175.94,175.89,22.56562456]
[1747887374820,28.24938038,175.94,175.89,22.56562456]
[1747887375120,22.56562456,175.93,175.88,22.56562456]
[1747887375421,5.684402,175.92,175.87,48.56562456]
[1747887375903,5.684402,175.92,175.88,22.56562456]
[1747887376294,5.684402,175.92,175.87,26.0]
[1747887376295,56.66562456,175.91,175.87,26.0]
[1747887377622,22.56562456,175.88,175.82,22.56562456]
[1747887377822,56.66562456,175.87,175.82,22.56562456]
[1747887378189,34.1,175.87,175.82,22.56562456]
[1747887378390,56.66562456,175.87,175.82,22.56562456]
[1747887378618,34.1,175.87,175.84,22.56562456]
[1747887378808,34.1,175.87,175.83,22.56562456]
[1747887379498,5.6863414,175.86,175.81,26.0]
[1747887379696,5.6863414,175.86,175.83,22.56562456]
[1747887380016,34.1,175.87,175.84,22.56562456]
[1747887380315,39.78621324,175.87,175.83,22.56562456]
[1747887380516,34.1,175.87,175.84,22.56562456]
[1747887381020,29.99927928,175.9,175.86,22.56562456]
[1747887381317,29.99927928,175.9,175.88,22.56562456]
[1747887381521,29.99927928,175.9,175.89,22.56562456]
[1747887381704,29.99927928,175.9,175.89,28.39315766]
[1747887381891,29.99927928,175.9,175.89,69.60843108]
[1747887382090,29.99927928,175.9,175.89,28.39315766]
[1747887382303,29.99927928,175.9,175.89,22.56562456]
[1747887382521,29.99927928,175.9,175.89,48.70778613]
[1747887382822,29.99927928,175.9,175.89,41.35743499]
[1747887383019,29.99927928,175.9,175.89,22.70778613]
[1747887383511,29.99927928,175.9,175.89,28.39315766]
[1747887384017,29.99927928,175.9,175.89,47.04280652]
[1747887385017,29.99927928,175.9,175.89,69.60843108]
[1747887385317,39.78183232,176.0,175.93,0.14216157]
[1747887385529,39.78183232,176.0,175.95,22.56562456]
[1747887385530,34.1,176.0,175.95,22.56562456]
[1747887386015,39.78194933,176.0,175.94,22.56562456]
[1747887386319,22.56562456,175.99,175.94,22.56562456]
[1747887386700,62.34757389,176.0,175.95,22.56562456]
[1747887387430,56.66562456,176.0,175.95,22.56562456]
[1747887387632,62.34744522,176.0,175.95,22.56562456]
[1747887388014,62.34744522,176.0,175.93,5.68402032]
[1747887388015,22.56562456,175.98,175.93,22.56562456]
[1747887388219,22.56562456,175.98,175.93,26.0]
[1747887388634,22.56562456,175.99,175.94,22.56562456]
[1747887389133,22.56562456,175.97,175.91,22.56562456]
[1747887389430,56.66562456,175.96,175.91,22.56562456]
[1747887389606,28.24905735,175.95,175.9,26.0]
[1747887389805,5.68343279,175.95,175.91,22.56562456]
[1747887390206,39.78312921,175.96,175.91,22.56562456]
[1747887390432,22.56562456,175.95,175.9,22.56562456]
[1747887390625,22.56562456,175.95,175.91,22.56562456]
[1747887390811,62.34875377,175.96,175.91,22.56562456]